bitfinex/quotes_BTCUSD_20241003
["timestamp","ask_amount","ask_price","bid_price","bid_amount"]
[1727994907890,1.05986021,61066.0,61065.0,0.001636]
[1727994908114,1.1934539,61066.0,61065.0,0.001636]
[1727994908322,0.88329963,61066.0,61065.0,0.001636]
[1727994908782,0.73411292,61066.0,61065.0,0.001636]
[1727994909216,0.73211292,61066.0,61065.0,0.001636]
[1727994909442,0.73411292,61066.0,61065.0,0.001636]
[1727994910341,0.73211292,61066.0,61065.0,0.001636]
[1727994910573,0.75778922,61066.0,61065.0,0.001636]
[1727994911011,0.73211292,61066.0,61065.0,0.001636]
[1727994911453,0.16377,61061.0,61060.0,0.001634]
[1727994911719,0.47745162,61061.0,61060.0,0.001634]
[1727994912197,0.59994626,61061.0,61060.0,0.001634]
[1727994912837,0.23726196,61061.0,61060.0,0.001634]
[1727994913488,0.24526196,61061.0,61060.0,0.002634]
[1727994913702,0.17877,61061.0,61060.0,0.003634]
[1727994913926,0.24426196,61061.0,61060.0,0.001634]
[1727994914150,0.22676024,61061.0,61060.0,0.002634]
[1727994914376,0.23276024,61061.0,61060.0,0.003634]
[1727994914586,0.21976024,61061.0,61060.0,0.002634]
[1727994915051,0.52789221,61061.0,61060.0,0.001634]
[1727994915287,0.55439393,61061.0,61060.0,0.001634]
[1727994915499,0.5045784,61061.0,61060.0,0.001634]
[1727994915745,0.35322594,61061.0,61060.0,0.001634]
[1727994915965,0.18944643,61061.0,61060.0,0.001634]
[1727994916426,0.19144643,61061.0,61060.0,0.002634]
[1727994916660,0.24042974,61061.0,61060.0,0.085734]
[1727994916901,0.23842974,61061.0,61060.0,0.084734]
[1727994917109,0.24442974,61061.0,61060.0,0.085734]
[1727994917338,0.24842974,61061.0,61060.0,0.084734]
[1727994917565,0.24842974,61061.0,61060.0,0.085734]
[1727994917797,0.19544643,61061.0,61060.0,0.085734]
[1727994918030,0.19044643,61061.0,61060.0,0.084734]
[1727994918233,0.16477,61061.0,61060.0,0.085734]
[1727994918718,0.16477,61061.0,61060.0,0.002634]
[1727994919171,0.31778097,61061.0,61060.0,0.002634]
[1727994919408,0.49228097,61061.0,61060.0,0.002634]
[1727994919618,0.49328097,61061.0,61060.0,0.001634]
[1727994919825,0.44429766,61061.0,61060.0,0.001634]
[1727994920060,0.44329766,61061.0,61060.0,0.002634]
[1727994920275,0.34127,61061.0,61060.0,0.002634]
[1727994920487,0.41574951,61061.0,61060.0,0.002634]
[1727994920690,0.41374951,61061.0,61060.0,0.001634]
[1727994921118,0.41274951,61061.0,61060.0,0.002634]
[1727994921325,0.41774951,61061.0,61060.0,0.001634]
[1727994921536,0.42274951,61061.0,61060.0,0.001634]
[1727994922645,0.41774951,61061.0,61060.0,0.001634]
[1727994922881,0.41774951,61061.0,61060.0,0.002634]
[1727994922882,0.34064951,61061.0,61060.0,0.002634]
[1727994923096,0.34564951,61061.0,61060.0,0.002634]
[1727994923973,0.4020988,61061.0,61060.0,0.002634]
[1727994924196,0.71434511,61061.0,61060.0,0.002634]
[1727994924425,0.61635329,61061.0,61060.0,0.002634]
[1727994924874,0.67137215,61061.0,61060.0,0.002634]
[1727994925093,0.77137215,61061.0,61060.0,0.002634]
[1727994925343,0.77137215,61061.0,61046.0,0.24634789]
[1727994925344,0.163808,61047.0,61046.0,0.24634789]
[1727994925805,0.18948747,61047.0,61046.0,0.24634789]
[1727994926015,0.163818,61043.0,61040.0,0.0788]
[1727994927303,0.165818,61043.0,61042.0,0.020636]
[1727994927740,0.002,61043.0,61042.0,0.34764371]
[1727994927961,0.002,61043.0,61042.0,0.52514371]
[1727994929799,0.002,61043.0,61042.0,0.36132271]
[1727994930011,0.002,61043.0,61042.0,0.26262271]
[1727994930876,0.002,61043.0,61042.0,0.42644371]
[1727994933657,0.002,61043.0,61042.0,0.26262271]
[1727994934295,0.00488688,61043.0,61042.0,0.26262271]
[1727994935631,0.00488688,61043.0,61042.0,0.42644371]
[1727994936276,0.002,61043.0,61042.0,0.42644371]
[1727994937425,0.002,61043.0,61042.0,0.26262271]
[1727994937879,0.00510924,61043.0,61042.0,0.26262271]
[1727994938103,0.00510924,61043.0,61042.0,0.41844371]
[1727994938104,0.001,61043.0,61042.0,0.41844371]
[1727994938344,0.002,61043.0,61042.0,0.42444371]
[1727994938564,0.001,61043.0,61042.0,0.24962271]
[1727994938772,0.001,61043.0,61042.0,0.24362271]
[1727994938990,0.00310924,61043.0,61042.0,0.24362271]
[1727994939212,0.001,61043.0,61042.0,0.24962271]
[1727994939424,0.0051088,61043.0,61042.0,0.25662271]
[1727994939643,0.0041088,61043.0,61042.0,0.25062271]
[1727994939862,0.0041088,61043.0,61042.0,0.24962271]
[1727994940074,0.0051088,61043.0,61042.0,0.25962271]
[1727994940286,0.0051088,61043.0,61042.0,0.41344371]
[1727994940738,0.0061088,61043.0,61042.0,0.42244371]
[1727994940966,0.0061088,61043.0,61042.0,0.54534371]
[1727994940967,0.003,61043.0,61042.0,0.54534371]
[1727994941187,0.002,61043.0,61042.0,0.53934371]
[1727994941611,0.003,61043.0,61042.0,0.54534371]
[1727994942083,0.04902896,61055.0,61048.0,0.32761]
[1727994942325,0.04902896,61055.0,61049.0,0.40568771]
[1727994942326,0.41013989,61053.0,61049.0,0.40568771]
[1727994942547,0.00310912,61052.0,61051.0,0.163797]
[1727994942770,0.09805793,61057.0,61051.0,0.34178671]
[1727994942771,0.04902896,61057.0,61051.0,0.34178671]
[1727994942992,0.000818,61060.0,61057.0,0.163781]
[1727994943205,0.000818,61060.0,61057.0,0.24248]
[1727994943641,0.163777,61059.0,61057.0,0.0787]
[1727994943858,0.163778,61058.0,61057.0,0.0787]
[1727994944318,0.163778,61058.0,61057.0,0.07791648]
[1727994944530,0.04902896,61059.0,61057.0,0.07791648]
[1727994944531,0.21280496,61059.0,61057.0,0.07791648]
[1727994944786,0.04902896,61058.0,61057.0,0.07791648]
[1727994945005,0.21280496,61059.0,61057.0,0.07791648]
[1727994945214,0.163778,61058.0,61057.0,0.07791648]
[1727994945427,0.23732145,61058.0,61057.0,0.08191648]
[1727994945644,0.163778,61058.0,61057.0,0.08691648]
[1727994946086,0.163778,61058.0,61057.0,0.08291648]
[1727994946306,0.163778,61058.0,61057.0,0.08691648]
[1727994947157,0.23732145,61058.0,61057.0,0.08691648]
[1727994947783,0.23732145,61058.0,61057.0,0.09121525]
[1727994948196,0.163778,61058.0,61057.0,0.09121525]
[1727994948416,0.07354345,61059.0,61057.0,0.09121525]
[1727994949383,0.23732145,61059.0,61057.0,0.08621525]
[1727994949869,0.23732145,61059.0,61057.0,0.08921525]
[1727994950086,0.04910987,61058.0,61057.0,0.08921525]
[1727994950291,0.21599758,61058.0,61057.0,0.08921525]
[1727994950503,0.24043116,61058.0,61057.0,0.007]
[1727994950927,0.24043116,61058.0,61057.0,0.003]
[1727994951338,0.24043116,61058.0,61057.0,0.008]
[1727994951545,0.16688771,61058.0,61057.0,0.008]
[1727994951757,0.16688771,61058.0,61052.0,0.16318671]
[1727994951758,0.16379,61054.0,61052.0,0.16318671]
[1727994951966,0.00312683,61053.0,61052.0,0.4095346]
[1727994952194,0.04911126,61055.0,61052.0,0.16318671]
[1727994952195,0.21289826,61055.0,61052.0,0.16318671]
[1727994952446,0.00312683,61053.0,61051.0,0.0766]
[1727994952673,0.163793,61053.0,61051.0,0.0766]
[1727994952872,0.00312436,61052.0,61051.0,0.0766]
[1727994953537,0.00312436,61052.0,61050.0,0.00426689]
[1727994953768,0.00312436,61052.0,61047.0,0.0766]
[1727994953769,0.163805,61048.0,61047.0,0.0766]
[1727994954000,0.163805,61048.0,61042.0,0.1937457]
[1727994954001,0.00312411,61048.0,61042.0,0.001636]
[1727994954243,0.163818,61043.0,61042.0,0.24798389]
[1727994954491,0.21292765,61043.0,61042.0,0.24798389]
[1727994954712,0.21605144,61043.0,61042.0,0.001636]
[1727994955802,0.21705144,61043.0,61042.0,0.011636]
[1727994956035,0.21705144,61043.0,61042.0,0.022636]
[1727994956282,0.38285654,61043.0,61042.0,0.011636]
[1727994956495,0.62366068,61043.0,61042.0,0.011636]
[1727994956708,0.3841911,61043.0,61042.0,0.021636]
[1727994957137,0.3831911,61043.0,61042.0,0.011636]
[1727994957630,0.3831911,61043.0,61042.0,0.020636]
[1727994957631,0.38375254,61043.0,61042.0,0.020636]
[1727994958054,0.38275254,61043.0,61042.0,0.011636]
[1727994958259,0.38275254,61043.0,61042.0,0.001636]
[1727994958467,0.38275254,61043.0,61042.0,0.004636]
[1727994958679,0.50550829,61043.0,61042.0,0.009636]
[1727994959109,0.50550829,61043.0,61042.0,0.006636]
[1727994959330,0.50550829,61043.0,61042.0,0.008636]
[1727994959547,0.50550829,61043.0,61042.0,0.001636]
[1727994960457,0.50550829,61043.0,61042.0,0.003636]
[1727994960894,0.50550829,61043.0,61042.0,0.001636]
[1727994961386,0.50950829,61043.0,61042.0,0.001636]
[1727994961831,0.16694179,61043.0,61042.0,0.001636]
[1727994962054,0.50836024,61043.0,61042.0,0.001636]
[1727994963454,0.38263907,61043.0,61042.0,0.001636]
[1727994963667,0.48079618,61043.0,61042.0,0.001636]
[1727994963883,0.38463907,61043.0,61042.0,0.001636]
[1727994964304,0.48279492,61043.0,61042.0,0.001636]
[1727994964947,0.50847695,61043.0,61042.0,0.001636]
[1727994965383,0.10441496,61043.0,61042.0,0.43523241]
[1727994965596,0.10441496,61043.0,61042.0,0.24312271]
[1727994965597,0.03080582,61043.0,61042.0,0.24312271]
[1727994966453,0.02880582,61043.0,61042.0,0.24312271]
[1727994966672,0.02880582,61043.0,61042.0,0.24812271]
[1727994966879,0.02880582,61043.0,61042.0,0.25312271]
[1727994967096,0.02880582,61043.0,61042.0,0.011636]
[1727994967316,0.07787646,61043.0,61042.0,0.001636]
[1727994967536,0.02880582,61043.0,61042.0,0.004636]
[1727994968674,0.02880582,61043.0,61042.0,0.006636]
[1727994968903,0.02880582,61043.0,61042.0,0.004636]
[1727994969168,0.19262382,61043.0,61042.0,0.008636]
[1727994969602,0.24169446,61043.0,61042.0,0.008636]
[1727994969817,0.19262382,61043.0,61042.0,0.008636]
[1727994970030,0.19262382,61043.0,61042.0,0.001636]
[1727994970245,0.26622675,61043.0,61042.0,0.005636]
[1727994970466,0.19262382,61043.0,61042.0,0.006636]
[1727994970692,0.24169205,61043.0,61042.0,0.001636]
[1727994970916,0.19262382,61043.0,61042.0,0.001636]
[1727994971129,0.19362382,61043.0,61042.0,0.001636]
[1727994971349,0.24269205,61043.0,61042.0,0.001636]
[1727994971565,0.24169205,61043.0,61042.0,0.001636]
[1727994971798,0.07887405,61043.0,61042.0,0.001636]
[1727994972022,0.02980582,61043.0,61042.0,0.165457]
[1727994972236,0.02980582,61043.0,61042.0,0.001636]
[1727994972451,0.00412379,61043.0,61042.0,0.002636]
[1727994972886,0.00412379,61043.0,61042.0,0.001636]
[1727994973122,0.00312379,61043.0,61042.0,0.001636]
[1727994973328,0.00312379,61043.0,61042.0,0.002636]
[1727994973537,0.00312379,61043.0,61042.0,0.006636]
[1727994973754,0.00312379,61043.0,61042.0,0.005636]
[1727994974163,0.00312379,61043.0,61042.0,0.009636]
[1727994974602,0.04906823,61045.0,61042.0,0.005636]
[1727994974814,0.00276733,61043.0,61042.0,0.005636]
[1727994975032,0.00276733,61043.0,61042.0,0.009636]
[1727994975033,0.163818,61043.0,61042.0,0.009636]
[1727994975241,0.16658533,61043.0,61042.0,0.009636]
[1727994975505,0.16658533,61043.0,61042.0,0.005636]
[1727994975740,0.16658533,61043.0,61042.0,0.009636]
[1727994975963,0.45868534,61043.0,61042.0,0.005636]
[1727994976179,0.45868534,61043.0,61042.0,0.001636]
[1727994976180,0.67384443,61043.0,61042.0,0.001636]
[1727994976406,0.79651598,61043.0,61042.0,0.004636]
[1727994976618,0.79651598,61043.0,61042.0,0.003636]
[1727994976865,0.79651598,61043.0,61042.0,0.002636]
[1727994977284,0.79851598,61043.0,61042.0,0.002636]
[1727994977502,0.55674442,61043.0,61042.0,0.002636]
[1727994977928,0.67741597,61043.0,61042.0,0.002636]
[1727994978150,0.68141597,61043.0,61042.0,0.002636]
[1727994978574,0.68141597,61043.0,61042.0,0.001636]
[1727994979250,0.68137175,61043.0,61042.0,0.001636]
[1727994979477,0.55873408,61043.0,61042.0,0.001636]
[1727994980360,0.68137175,61043.0,61042.0,0.001636]
[1727994980572,0.84455846,61043.0,61042.0,0.001636]
[1727994980817,0.84655846,61043.0,61042.0,0.001636]
[1727994981238,0.77698798,61043.0,61042.0,0.001636]
[1727994981447,1.02415318,61043.0,61042.0,0.001636]
[1727994981656,1.1771713,61043.0,61042.0,0.001636]
[1727994981882,0.163851,61031.0,61030.0,0.001636]
[1727994982125,0.16682556,61031.0,61030.0,0.001636]
[1727994983171,0.16782556,61031.0,61030.0,0.009636]
[1727994983616,0.16682556,61031.0,61030.0,0.010636]
[1727994985315,0.16682556,61031.0,61030.0,0.001636]
[1727994985731,0.17282556,61031.0,61030.0,0.001636]
[1727994985935,0.17182556,61031.0,61030.0,0.001636]
[1727994986155,0.16682556,61031.0,61030.0,0.001636]
[1727994986358,0.16682556,61031.0,61030.0,0.004636]
[1727994987624,0.16682556,61031.0,61030.0,0.003636]
[1727994988077,0.30600542,61031.0,61030.0,0.003636]
[1727994988347,0.16682556,61031.0,61030.0,0.001636]
[1727994988586,0.37291771,61031.0,61030.0,0.001636]
[1727994988796,0.37291771,61031.0,61030.0,0.002636]
[1727994989065,0.51264708,61031.0,61030.0,0.003636]
[1727994989270,0.3738483,61031.0,61030.0,0.003636]
[1727994989463,0.30034599,61031.0,61030.0,0.002636]
[1727994989719,0.3738483,61031.0,61030.0,0.002636]
[1727994989940,0.3758483,61031.0,61030.0,0.002636]
[1727994990991,0.24922556,61031.0,61030.0,0.002636]
[1727994991210,0.37584079,61031.0,61030.0,0.002636]
[1727994991418,0.29644079,61031.0,61030.0,0.002636]
[1727994991622,0.21882061,61031.0,61030.0,0.002636]
[1727994991827,0.16982556,61031.0,61030.0,0.002636]
[1727994992035,0.29643414,61031.0,61030.0,0.002636]
[1727994992244,0.24332787,61031.0,61030.0,0.002636]
[1727994992910,0.21882443,61031.0,61030.0,0.002636]
[1727994993140,0.16982556,61031.0,61030.0,0.002636]
[1727994994444,0.00597456,61031.0,61030.0,0.002636]
[1727994995331,0.00397456,61031.0,61030.0,0.002636]
[1727994995539,0.00397456,61031.0,61030.0,0.001636]
[1727994995540,0.00297456,61031.0,61030.0,0.001636]
[1727994995743,0.16682556,61031.0,61030.0,0.003636]
[1727994995949,0.16882556,61031.0,61030.0,0.003636]
[1727994996819,0.00297456,61031.0,61030.0,0.003636]
[1727994997039,0.00297456,61031.0,61030.0,0.005636]
[1727994997266,0.00297456,61031.0,61030.0,0.169489]
[1727994997918,0.00297456,61031.0,61030.0,0.005636]
[1727994998154,0.00297456,61031.0,61030.0,0.167489]
[1727994998366,0.00297456,61031.0,61030.0,0.169489]
[1727994998624,0.00297456,61031.0,61030.0,0.172489]
[1727994998860,0.37668687,61034.0,61030.0,0.008636]
[1727994999077,0.00295322,61031.0,61030.0,0.008636]
[1727994999292,0.163851,61031.0,61030.0,0.008636]
[1727994999485,0.16680476,61031.0,61030.0,0.008636]
[1727994999704,0.16680476,61031.0,61030.0,0.001636]
[1727994999927,0.21580363,61031.0,61030.0,0.001636]
[1727995000163,0.16680476,61031.0,61030.0,0.001636]
[1727995000615,0.47919637,61031.0,61030.0,0.001636]
[1727995000833,0.16680476,61031.0,61030.0,0.001636]
[1727995001046,0.38118562,61031.0,61030.0,0.001636]
[1727995001261,0.47928124,61031.0,61030.0,0.001636]
[1727995001499,0.47928124,61031.0,61030.0,0.008636]
[1727995001712,0.16680476,61031.0,61030.0,0.004636]
[1727995001911,0.19249172,61031.0,61030.0,0.004636]
[1727995002124,0.5050157,61031.0,61030.0,0.003636]
[1727995002546,0.51056498,61031.0,61030.0,0.003636]
[1727995002975,0.38123312,61031.0,61030.0,0.001636]
[1727995003176,0.38423312,61031.0,61030.0,0.001636]
[1727995004488,0.50385265,61031.0,61030.0,0.001636]
[1727995004693,0.50496731,61031.0,61030.0,0.001636]
[1727995004901,0.38223312,61031.0,61030.0,0.001636]
[1727995005107,0.50619855,61031.0,61030.0,0.001636]
[1727995005316,0.50819855,61031.0,61030.0,0.001636]
[1727995005530,0.60569855,61031.0,61030.0,0.001636]
[1727995005736,0.65881811,61031.0,61030.0,0.001636]
[1727995006153,0.68450679,61031.0,61030.0,0.001636]
[1727995007002,0.68395841,61031.0,61030.0,0.001636]
[1727995007214,0.65826973,61031.0,61030.0,0.001636]
[1727995008190,0.72787022,61031.0,61030.0,0.001636]
[1727995008434,0.78101259,61031.0,61030.0,0.001636]
[1727995008660,0.65704716,61031.0,61030.0,0.001636]
[1727995009117,0.53432711,61031.0,61030.0,0.001636]
[1727995010535,0.56001573,61031.0,61030.0,0.001636]
[1727995011727,0.56005422,61031.0,61030.0,0.001636]
[1727995016713,0.5601179,61031.0,61030.0,0.001636]
[1727995018361,0.4626179,61031.0,61030.0,0.001636]
[1727995019325,0.43692928,61031.0,61030.0,0.001636]
[1727995020078,0.27307828,61031.0,61030.0,0.001636]
[1727995020339,0.00595376,61031.0,61030.0,0.001636]
[1727995020592,0.21936853,61031.0,61030.0,0.001636]
[1727995020828,0.00295376,61031.0,61030.0,0.001636]
[1727995021078,0.21937356,61031.0,61030.0,0.001636]
[1727995021328,0.2181987,61031.0,61030.0,0.001636]
[1727995021566,0.31546571,61031.0,61030.0,0.001636]
[1727995021787,0.47931671,61031.0,61030.0,0.001636]
[1727995022006,0.60506876,61031.0,61030.0,0.001636]
[1727995022222,0.62963552,61031.0,61030.0,0.001636]
[1727995022443,0.3810497,61031.0,61030.0,0.001636]
[1727995022689,0.43424692,61031.0,61030.0,0.001636]
[1727995024457,0.21982712,61031.0,61030.0,0.001636]
[1727995024668,0.43421424,61031.0,61030.0,0.001636]
[1727995024883,0.38101702,61031.0,61030.0,0.001636]
[1727995025095,0.43421499,61031.0,61030.0,0.001636]
[1727995026239,0.51976635,61031.0,61030.0,0.001636]
[1727995026692,0.52176635,61031.0,61030.0,0.001636]
[1727995026951,0.68571128,61031.0,61030.0,0.001636]
[1727995027230,0.68771128,61031.0,61030.0,0.001636]
[1727995027481,0.16388,61020.0,61019.0,0.001636]
[1727995027706,0.84277682,61020.0,61019.0,0.001636]
[1727995027926,0.89875349,61020.0,61019.0,0.001636]
[1727995028613,0.89975349,61020.0,61019.0,0.002636]
[1727995029048,0.90508469,61020.0,61019.0,0.002636]
[1727995029277,1.0682714,61020.0,61019.0,0.002636]
[1727995029539,1.37587705,61020.0,61019.0,0.002636]
[1727995030196,1.38987705,61020.0,61019.0,0.003636]
[1727995030431,1.38887705,61020.0,61019.0,0.002636]
[1727995030890,1.38887705,61020.0,61019.0,0.003636]
[1727995030891,1.40287705,61020.0,61019.0,0.003636]
[1727995031115,1.38687705,61020.0,61019.0,0.002636]
[1727995031359,1.42657399,61020.0,61019.0,0.003636]
[1727995032023,1.42857399,61020.0,61019.0,0.003636]
[1727995033660,0.165888,61017.0,61016.0,0.001636]
[1727995033891,0.53880429,61017.0,61016.0,0.001636]
[1727995034129,0.54133715,61017.0,61016.0,0.001636]
[1727995034563,0.70676887,61017.0,61016.0,0.001636]
[1727995035273,0.54133715,61017.0,61016.0,0.001636]
[1727995035488,0.73476887,61017.0,61016.0,0.0016606]
[1727995035704,0.92687857,61017.0,61016.0,0.0016606]
[1727995035922,0.76144685,61017.0,61016.0,0.0016606]
[1727995036139,1.23223921,61017.0,61016.0,0.0016606]
[1727995036571,1.0690525,61017.0,61016.0,0.0016606]
[1727995036791,0.8749428,61017.0,61016.0,0.0016606]
[1727995037017,0.71429299,61017.0,61016.0,0.0016606]
[1727995037248,0.56733715,61017.0,61016.0,0.0016606]
[1727995037483,0.163902,61012.0,61003.0,0.077334]
[1727995037706,0.48362032,61012.0,61003.0,0.077334]
[1727995038199,0.48614001,61012.0,61003.0,0.077334]
[1727995038417,0.58409225,61012.0,61003.0,0.077334]
[1727995038637,0.60978894,61012.0,61003.0,0.077334]
[1727995039973,0.49514001,61012.0,61011.0,0.002634]
[1727995040192,0.59309225,61012.0,61011.0,0.002634]
[1727995040415,0.48614001,61012.0,61011.0,0.001634]
[1727995040626,0.50414001,61012.0,61011.0,0.003634]
[1727995040847,0.50414001,61012.0,61011.0,0.002634]
[1727995041286,0.29242169,61012.0,61011.0,0.003634]
[1727995041709,0.51096768,61012.0,61011.0,0.003634]
[1727995041925,0.60891992,61012.0,61011.0,0.003634]
[1727995042424,0.51096768,61012.0,61011.0,0.003634]
[1727995042642,0.3658516,61012.0,61011.0,0.003634]
[1727995043079,0.39154849,61012.0,61011.0,0.003634]
[1727995043298,0.39154814,61012.0,61011.0,0.003634]
[1727995043521,0.53670016,61012.0,61011.0,0.003634]
[1727995043957,0.31811858,61012.0,61011.0,0.003634]
[1727995044175,0.53673029,61012.0,61011.0,0.003634]
[1727995044617,0.699917,61012.0,61011.0,0.003634]
[1727995044823,0.53673029,61012.0,61011.0,0.003634]
[1727995045068,0.63463684,61012.0,61011.0,0.003634]
[1727995047178,0.62963029,61012.0,61011.0,0.003634]
[1727995047394,0.16391,61009.0,61003.0,0.001634]
[1727995047609,0.57463141,61009.0,61003.0,0.001634]
[1727995047819,0.67915627,61009.0,61003.0,0.001634]
[1727995048039,0.80155537,61009.0,61003.0,0.001634]
[1727995048281,0.92116555,61009.0,61003.0,0.001634]
[1727995048505,0.79876645,61009.0,61003.0,0.001634]
[1727995048958,0.92616214,61009.0,61003.0,0.001634]
[1727995049166,0.80376645,61009.0,61003.0,0.001634]
[1727995049381,0.81076645,61009.0,61008.0,0.002636]
[1727995049590,0.69115627,61009.0,61008.0,0.002636]
[1727995051308,0.81354245,61009.0,61008.0,0.002636]
[1727995051731,0.69115627,61009.0,61008.0,0.002636]
[1727995051949,0.68915627,61009.0,61008.0,0.002636]
[1727995052159,0.81071074,61009.0,61008.0,0.002636]
[1727995053710,0.86227716,61009.0,61008.0,0.002636]
[1727995053939,0.79287229,61009.0,61008.0,0.002636]
[1727995054389,0.79487229,61009.0,61008.0,0.002636]
[1727995055029,0.97097229,61009.0,61008.0,0.002636]
[1727995055715,0.4560327,61004.0,61003.0,0.001634]
[1727995055979,0.72879401,61004.0,61003.0,0.001634]
[1727995056182,0.73129826,61004.0,61003.0,0.001634]
[1727995056591,0.89375756,61004.0,61003.0,0.001634]
[1727995056806,0.90475756,61004.0,61003.0,0.002634]
[1727995057237,0.91875756,61004.0,61003.0,0.002634]
[1727995057450,0.4580437,61000.0,60999.0,0.00109851]
[1727995057672,0.7280776,61000.0,60999.0,0.00109851]
[1727995057880,0.89376816,61000.0,60999.0,0.00109851]
[1727995058096,0.97196816,61000.0,60999.0,0.00109851]
[1727995058518,1.19025695,61000.0,60999.0,0.00109851]
[1727995058929,1.06786816,61000.0,60999.0,0.00109851]
[1727995059386,1.06986816,61000.0,60999.0,0.00109851]
[1727995059614,1.09586816,61000.0,60999.0,0.00109851]
[1727995059827,1.51408841,61000.0,60999.0,0.00109851]
[1727995060088,1.51408841,61000.0,60998.0,5.1e-07]
[1727995060089,0.288937,60999.0,60998.0,5.1e-07]
[1727995060311,0.442042,60997.0,60978.0,0.0774]
[1727995060590,0.7350759,60997.0,60996.0,1e-06]
[1727995060808,1.04044587,60997.0,60996.0,1e-06]
[1727995061035,0.002,60986.0,60972.0,0.24634789]
[1727995061285,0.6341817,60986.0,60972.0,0.24634789]
[1727995061488,0.263985,60981.0,60972.0,0.24634789]
[1727995061701,0.53447682,60981.0,60972.0,0.24634789]
[1727995061936,0.72907715,60981.0,60972.0,0.24634789]
[1727995062572,0.85137666,60981.0,60972.0,0.24634789]
[1727995062784,0.86137666,60981.0,60972.0,0.24634789]
[1727995063019,1.02403999,60981.0,60972.0,0.24634789]
[1727995063241,0.90174048,60981.0,60972.0,0.24634789]
[1727995063474,0.89174048,60981.0,60972.0,0.24634789]
[1727995063701,0.75207715,60981.0,60972.0,0.24634789]
[1727995063947,0.87437666,60981.0,60972.0,0.24634789]
[1727995064186,0.88737666,60981.0,60972.0,0.24634789]
[1727995064405,0.75507715,60981.0,60972.0,0.24634789]
[1727995064665,0.79478934,60981.0,60972.0,0.24634789]
[1727995064891,0.96182303,60981.0,60972.0,0.24634789]
[1727995065108,0.96182303,60981.0,60960.0,0.24634789]
[1727995065109,0.99882303,60981.0,60960.0,0.24634789]
[1727995065337,0.266004,60974.0,60973.0,0.24634789]
[1727995065587,0.266004,60974.0,60960.0,0.24634789]
[1727995065588,0.164017,60969.0,60960.0,0.24634789]
[1727995065835,0.37297368,60969.0,60967.0,0.24634789]
[1727995066059,0.26208084,60969.0,60967.0,0.24634789]
[1727995066285,0.26208084,60969.0,60960.0,0.24634789]
[1727995066286,0.50117938,60969.0,60960.0,0.24634789]
[1727995066513,0.66584271,60969.0,60960.0,0.24634789]
[1727995066755,0.70310583,60969.0,60960.0,0.24634789]
[1727995066970,0.72003307,60969.0,60960.0,0.24634789]
[1727995067190,0.60626115,60969.0,60960.0,0.24634789]
[1727995067411,0.264039,60961.0,60960.0,0.24634789]
[1727995067630,0.4581487,60961.0,60960.0,0.24634789]
[1727995067860,0.264047,60958.0,60957.0,0.001638]
[1727995068311,0.2663957,60958.0,60957.0,0.001638]
[1727995068971,0.2723957,60958.0,60957.0,0.001638]
[1727995069691,0.29811457,60958.0,60957.0,0.001638]
[1727995069919,0.29211457,60958.0,60957.0,0.001638]
[1727995071252,0.30711457,60958.0,60957.0,0.001638]
[1727995071702,0.29911457,60958.0,60957.0,0.001638]
[1727995071913,0.30711457,60958.0,60957.0,0.001638]
[1727995073012,0.30011457,60958.0,60957.0,0.001638]
[1727995073674,0.30711457,60958.0,60957.0,0.001638]
[1727995074121,0.31678608,60958.0,60957.0,0.001638]
[1727995074766,0.2813957,60958.0,60957.0,0.001638]
[1727995074981,0.2663957,60958.0,60957.0,0.001638]
[1727995075404,0.2743957,60958.0,60957.0,0.001638]
[1727995075642,0.2743957,60958.0,60957.0,0.078438]
[1727995076264,0.2813957,60958.0,60957.0,0.078438]
[1727995076506,0.28113216,60958.0,60957.0,0.078438]
[1727995077174,0.29185012,60958.0,60957.0,0.078438]
[1727995077412,0.29785012,60958.0,60957.0,0.078438]
[1727995077619,0.30585012,60958.0,60957.0,0.078438]
[1727995078041,0.29785012,60958.0,60957.0,0.078438]
[1727995078252,0.27213216,60958.0,60957.0,0.078438]
[1727995078463,0.27913216,60958.0,60957.0,0.078438]
[1727995079759,0.27313216,60958.0,60957.0,0.078438]
[1727995080000,0.28013216,60958.0,60957.0,0.078438]
[1727995080218,0.26613216,60958.0,60957.0,0.078438]
[1727995080646,0.27813216,60958.0,60957.0,0.078438]
[1727995081061,0.28513216,60958.0,60957.0,0.078438]
[1727995081560,0.43178751,60958.0,60957.0,0.001638]
[1727995081770,0.43978751,60958.0,60957.0,0.001638]
[1727995082220,0.43978751,60958.0,60947.0,0.0768]
[1727995082221,0.4581647,60955.0,60947.0,0.0768]
[1727995082441,0.4581647,60955.0,60946.0,0.001638]
[1727995082660,0.46049564,60955.0,60946.0,0.001638]
[1727995083538,0.46024752,60955.0,60946.0,0.001638]
[1727995084163,0.47349564,60955.0,60946.0,0.001638]
[1727995084377,0.47249564,60955.0,60946.0,0.001638]
[1727995084596,0.48649564,60955.0,60946.0,0.001638]
[1727995085030,0.48749564,60955.0,60946.0,0.001638]
[1727995085477,0.29438594,60955.0,60954.0,0.078238]
[1727995086535,0.26638594,60955.0,60954.0,0.078238]
[1727995086775,0.28038594,60955.0,60954.0,0.078238]
[1727995087417,0.26638594,60955.0,60954.0,0.078238]
[1727995087855,0.27938594,60955.0,60954.0,0.078238]
[1727995088520,0.17238594,60955.0,60954.0,0.078238]
[1727995089189,0.16638594,60955.0,60954.0,0.078238]
[1727995089569,0.17238594,60955.0,60954.0,0.078238]
[1727995089816,0.16638594,60955.0,60954.0,0.078238]
[1727995090023,0.17838594,60955.0,60954.0,0.078238]
[1727995090457,0.17138594,60955.0,60954.0,0.078238]
[1727995090648,0.17738594,60955.0,60954.0,0.078238]
[1727995093675,0.20310418,60955.0,60954.0,0.078238]
[1727995094814,0.20310418,60955.0,60954.0,0.001638]
[1727995095017,0.25625303,60955.0,60954.0,0.001638]
[1727995095428,0.38030773,60955.0,60954.0,0.001638]
[1727995096144,0.25625303,60955.0,60954.0,0.001638]
[1727995096327,0.25025303,60955.0,60954.0,0.001638]
[1727995096550,0.23053479,60955.0,60954.0,0.001638]
[1727995096765,0.22553479,60955.0,60954.0,0.001638]
[1727995097181,0.22353479,60955.0,60954.0,0.001638]
[1727995097394,0.22853479,60955.0,60954.0,0.001638]
[1727995100441,0.22853479,60955.0,60954.0,0.078238]
[1727995103567,0.30195115,60955.0,60954.0,0.078238]
[1727995104286,0.5913153,60955.0,60954.0,0.001638]